[Event "January 9 Early 2024"]
[Site "https://www.chess.com"]
[Date "2024.01.11"]
[Round "1"]
[White "Lima, Kleyton Alcantara"]
[Black "Bolivar Losada, Jeison"]
[Result "1-0"]
[Board "178"]
[TimeControl "180+1"]
[WhiteFideId "22718397"]
[BlackFideId "4404793"]
[WhiteElo "2597"]
[BlackElo "2223"]
[WhiteTeam "BRA"]
[BlackTeam "COL"]
[WhiteClock "0:00:16"]
[BlackClock "0:00:04"]

1. e4 {[%clk 0:03:00]}  c5 {[%clk 0:02:59]} 2. Nf3 {[%clk 0:02:59]}  d6 {[%clk 0:03:00]} 3. d4 {[%clk 0:02:59]}  cxd4 {[%clk 0:03:00]} 4. Nxd4 {[%clk 0:03:00]}  Nf6 {[%clk 0:03:00]} 5. Nc3 {[%clk 0:03:01]}  a6 {[%clk 0:03:00]} 6. Bg5 {[%clk 0:03:01]}  e6 {[%clk 0:03:00]} 7. f4 {[%clk 0:02:58]}  h6 {[%clk 0:03:00]} 8. Bh4 {[%clk 0:02:57]}  Qb6 {[%clk 0:03:00]} 9. a3 {[%clk 0:02:54]}  Be7 {[%clk 0:02:59]} 10. Bf2 {[%clk 0:02:42]}  Qc7 {[%clk 0:02:59]} 11. Qf3 {[%clk 0:02:42]}  Nbd7 {[%clk 0:02:58]} 12. g4 {[%clk 0:02:37]}  b5 {[%clk 0:02:49]} 13. O-O-O {[%clk 0:02:37]}  Bb7 {[%clk 0:02:47]} 14. h4 {[%clk 0:02:34]}  Nc5 {[%clk 0:02:47]} 15. Bd3 {[%clk 0:02:32]}  d5 {[%clk 0:02:47]} 16. e5 {[%clk 0:02:30]}  Nfe4 {[%clk 0:02:46]} 17. Bxe4 {[%clk 0:02:30]}  Nxe4 {[%clk 0:02:45]} 18. Rh3 {[%clk 0:02:30]}  Rc8 {[%clk 0:02:26]} 19. Be1 {[%clk 0:02:24]}  b4 {[%clk 0:02:09]} 20. axb4 {[%clk 0:02:05]}  Bxb4 {[%clk 0:02:07]} 21. Ncb5 {[%clk 0:01:24]}  Qa5 {[%clk 0:01:03]} 22. Nd6+ {[%clk 0:00:38]}  Nxd6 {[%clk 0:00:39]} 23. Bxb4 {[%clk 0:00:38]}  Qxb4 {[%clk 0:00:22]} 24. exd6 {[%clk 0:00:37]}  Qxd6 {[%clk 0:00:20]} 25. Kb1 {[%clk 0:00:35]}  O-O {[%clk 0:00:18]} 26. h5 {[%clk 0:00:32]}  Rc4 {[%clk 0:00:17]} 27. g5 {[%clk 0:00:27]}  Qb6 {[%clk 0:00:15]} 28. Qe3 {[%clk 0:00:24]}  Rb8 {[%clk 0:00:11]} 29. gxh6 {[%clk 0:00:21]}  Bc8 {[%clk 0:00:05]} 30. Nb3 {[%clk 0:00:18]}  Qxe3 {[%clk 0:00:04]} 31. Rxe3 {[%clk 0:00:18]}  gxh6 {[%clk 0:00:04]} 32. f5 {[%clk 0:00:16]} 1-0

[Event "January 9 Early 2024"]
[Site "https://www.chess.com"]
[Date "2024.01.11"]
[Round "1"]
[White "Sztokbant, Bernardo Vainzoff"]
[Black "Maksimovic, Bojan"]
[Result "0-1"]
[Board "182"]
[TimeControl "180+1"]
[WhiteFideId "2115956"]
[BlackFideId "14408120"]
[WhiteElo "2482"]
[BlackElo "2905"]
[WhiteTeam "BRA"]
[BlackTeam "BIH"]
[WhiteClock "0:00:17"]
[BlackClock "0:00:17"]

1. e4 {[%clk 0:03:00]}  c5 {[%clk 0:02:54]} 2. Nf3 {[%clk 0:02:58]}  e6 {[%clk 0:02:52]} 3. d4 {[%clk 0:02:58]}  cxd4 {[%clk 0:02:53]} 4. Nxd4 {[%clk 0:02:58]}  a6 {[%clk 0:02:53]} 5. c4 {[%clk 0:02:58]}  Nf6 {[%clk 0:02:53]} 6. Nc3 {[%clk 0:02:58]}  Qc7 {[%clk 0:02:53]} 7. Be2 {[%clk 0:02:57]}  b6 {[%clk 0:02:53]} 8. O-O {[%clk 0:02:56]}  Bb7 {[%clk 0:02:53]} 9. f3 {[%clk 0:02:55]}  d6 {[%clk 0:02:53]} 10. Be3 {[%clk 0:02:50]}  Be7 {[%clk 0:02:52]} 11. Rc1 {[%clk 0:02:50]}  Nbd7 {[%clk 0:02:52]} 12. Kh1 {[%clk 0:02:40]}  O-O {[%clk 0:02:52]} 13. Qd2 {[%clk 0:02:39]}  Rac8 {[%clk 0:02:51]} 14. Rfd1 {[%clk 0:02:39]}  Rfe8 {[%clk 0:02:49]} 15. Bf1 {[%clk 0:02:40]}  h5 {[%clk 0:02:48]} 16. Qf2 {[%clk 0:02:38]}  Ne5 {[%clk 0:02:45]} 17. b3 {[%clk 0:02:38]}  h4 {[%clk 0:02:39]} 18. h3 {[%clk 0:02:28]}  Nh5 {[%clk 0:02:38]} 19. Nde2 {[%clk 0:02:21]}  Nd7 {[%clk 0:02:18]} 20. Na4 {[%clk 0:02:14]}  Nc5 {[%clk 0:02:16]} 21. Nac3 {[%clk 0:02:02]}  Ba8 {[%clk 0:02:11]} 22. Kg1 {[%clk 0:01:58]}  Bf6 {[%clk 0:01:43]} 23. Bd4 {[%clk 0:01:45]}  Bxd4 {[%clk 0:01:37]} 24. Rxd4 {[%clk 0:01:46]}  Qe7 {[%clk 0:01:34]} 25. Rcd1 {[%clk 0:01:42]}  Red8 {[%clk 0:01:21]} 26. b4 {[%clk 0:01:42]}  Nd7 {[%clk 0:01:21]} 27. Rxd6 {[%clk 0:01:22]}  Rxc4 {[%clk 0:01:16]} 28. Na4 {[%clk 0:01:07]}  Rxb4 {[%clk 0:01:16]} 29. Nxb6 {[%clk 0:00:55]}  Rxb6 {[%clk 0:01:16]} 30. Rxd7 {[%clk 0:00:49]}  Rxd7 {[%clk 0:01:17]} 31. Rxd7 {[%clk 0:00:48]}  Qxd7 {[%clk 0:01:17]} 32. Qxb6 {[%clk 0:00:49]}  Bc6 {[%clk 0:01:00]} 33. Qxa6 {[%clk 0:00:41]}  Bb5 {[%clk 0:01:00]} 34. Qa8+ {[%clk 0:00:41]}  Kh7 {[%clk 0:01:00]} 35. e5 {[%clk 0:00:34]}  Bxe2 {[%clk 0:00:45]} 36. Qe4+ {[%clk 0:00:34]}  g6 {[%clk 0:00:45]} 37. Bxe2 {[%clk 0:00:33]}  Qd2 {[%clk 0:00:42]} 38. a4 {[%clk 0:00:25]}  Kg7 {[%clk 0:00:27]} 39. Kh2 {[%clk 0:00:20]}  Ng3 {[%clk 0:00:17]} 40. Bb5 {[%clk 0:00:17]}  Nxe4 {[%clk 0:00:17]} 0-1

[Event "January 9 Early 2024"]
[Site "https://www.chess.com"]
[Date "2024.01.11"]
[Round "1"]
[White "Parpiev, Isaak"]
[Black "Marchesich, Giovanni"]
[Result "1/2-1/2"]
[Board "187"]
[TimeControl "180+1"]
[WhiteFideId "34281576"]
[BlackFideId "2824790"]
[WhiteElo "2694"]
[BlackElo "2375"]
[WhiteTeam "RUS"]
[BlackTeam "ITA"]
[WhiteClock "0:00:59"]
[BlackClock "0:00:08"]

1. e4 {[%clk 0:02:59]}  g6 {[%clk 0:02:59]} 2. d4 {[%clk 0:02:59]}  Bg7 {[%clk 0:03:00]} 3. Nc3 {[%clk 0:03:00]}  d5 {[%clk 0:03:00]} 4. exd5 {[%clk 0:02:58]}  Nf6 {[%clk 0:03:00]} 5. Bc4 {[%clk 0:02:57]}  O-O {[%clk 0:03:00]} 6. Nge2 {[%clk 0:02:57]}  Nbd7 {[%clk 0:03:00]} 7. O-O {[%clk 0:02:56]}  Nb6 {[%clk 0:03:00]} 8. Bb3 {[%clk 0:02:57]}  Nfxd5 {[%clk 0:02:58]} 9. Nxd5 {[%clk 0:02:58]}  Nxd5 {[%clk 0:02:58]} 10. c4 {[%clk 0:02:58]}  Nb6 {[%clk 0:02:52]} 11. Be3 {[%clk 0:02:59]}  c6 {[%clk 0:02:37]} 12. Qd2 {[%clk 0:02:59]}  Be6 {[%clk 0:02:29]} 13. Rac1 {[%clk 0:02:58]}  Qd7 {[%clk 0:02:26]} 14. Rfd1 {[%clk 0:02:56]}  Rad8 {[%clk 0:02:25]} 15. a4 {[%clk 0:02:53]}  Bf5 {[%clk 0:01:57]} 16. a5 {[%clk 0:02:53]}  Nc8 {[%clk 0:01:56]} 17. d5 {[%clk 0:02:47]}  cxd5 {[%clk 0:01:54]} 18. cxd5 {[%clk 0:02:48]}  Qb5 {[%clk 0:01:33]} 19. Nd4 {[%clk 0:02:45]}  Bxd4 {[%clk 0:01:32]} 20. Qxd4 {[%clk 0:02:43]}  Qxb3 {[%clk 0:01:30]} 21. Bh6 {[%clk 0:02:43]}  f6 {[%clk 0:01:26]} 22. Bxf8 {[%clk 0:02:44]}  Kxf8 {[%clk 0:01:20]} 23. h4 {[%clk 0:02:37]}  a6 {[%clk 0:01:12]} 24. h5 {[%clk 0:02:37]}  Nd6 {[%clk 0:01:07]} 25. h6 {[%clk 0:02:33]}  Kf7 {[%clk 0:01:00]} 26. Re1 {[%clk 0:02:22]}  Nb5 {[%clk 0:00:56]} 27. Qb6 {[%clk 0:02:22]}  Qxd5 {[%clk 0:00:47]} 28. Rcd1 {[%clk 0:02:04]}  Qxd1 {[%clk 0:00:47]} 29. Rxd1 {[%clk 0:02:05]}  Rxd1+ {[%clk 0:00:47]} 30. Kh2 {[%clk 0:02:06]}  Rd7 {[%clk 0:00:44]} 31. Qc5 {[%clk 0:02:03]}  Nd6 {[%clk 0:00:36]} 32. f3 {[%clk 0:02:00]}  g5 {[%clk 0:00:34]} 33. g4 {[%clk 0:01:57]}  Bg6 {[%clk 0:00:31]} 34. Qd5+ {[%clk 0:01:57]}  e6 {[%clk 0:00:26]} 35. Qc5 {[%clk 0:01:57]}  Ke7 {[%clk 0:00:25]} 36. Kg3 {[%clk 0:01:54]}  f5 {[%clk 0:00:23]} 37. Qe5 {[%clk 0:01:51]}  f4+ {[%clk 0:00:20]} 38. Kh3 {[%clk 0:01:41]}  Nf7 {[%clk 0:00:21]} 39. Qc5+ {[%clk 0:01:41]}  Kd8 {[%clk 0:00:18]} 40. Qf8+ {[%clk 0:01:40]}  Kc7 {[%clk 0:00:18]} 41. Qc5+ {[%clk 0:01:41]}  Kb8 {[%clk 0:00:17]} 42. Qf8+ {[%clk 0:01:39]}  Kc7 {[%clk 0:00:17]} 43. b4 {[%clk 0:01:36]}  Rd3 {[%clk 0:00:08]} 44. Kg2 {[%clk 0:01:32]}  Rd2+ {[%clk 0:00:08]} 45. Kf1 {[%clk 0:01:32]}  Rd3 {[%clk 0:00:09]} 46. Ke2 {[%clk 0:01:28]}  Rd6 {[%clk 0:00:09]} 47. Qe7+ {[%clk 0:01:25]}  Kc8 {[%clk 0:00:08]} 48. Ke1 {[%clk 0:01:22]}  Kb8 {[%clk 0:00:08]} 49. Qe8+ {[%clk 0:01:14]}  Ka7 {[%clk 0:00:08]} 50. Qe7 {[%clk 0:01:15]}  Rc6 {[%clk 0:00:07]} 51. Kd2 {[%clk 0:01:12]}  Ne5 {[%clk 0:00:07]} 52. Ke2 {[%clk 0:01:02]}  Rc2+ {[%clk 0:00:07]} 53. Kd1 {[%clk 0:01:02]}  Nxf3 {[%clk 0:00:07]} 54. Qxe6 {[%clk 0:00:59]}  Rd2+ {[%clk 0:00:07]} 55. Kc1 {[%clk 0:00:59]}  Rc2+ {[%clk 0:00:08]} 56. Kd1 {[%clk 0:00:59]}  Rd2+ {[%clk 0:00:09]} 57. Kc1 {[%clk 0:00:59]}  Rc2+ {[%clk 0:00:08]} 58. Kd1 {[%clk 0:00:59]} 1/2-1/2

[Event "January 9 Early 2024"]
[Site "https://www.chess.com"]
[Date "2024.01.11"]
[Round "1"]
[White "Wojtaszek, Radoslaw"]
[Black "Karavade, Eesha"]
[Result "1-0"]
[Board "188"]
[TimeControl "180+1"]
[WhiteFideId "1118358"]
[BlackFideId "5012600"]
[WhiteElo "2834"]
[BlackElo "2442"]
[WhiteTeam "POL"]
[BlackTeam "IND"]
[WhiteClock "0:00:22"]
[BlackClock "0:00:23"]

1. e4 {[%clk 0:03:00]}  c5 {[%clk 0:02:58]} 2. Nf3 {[%clk 0:03:00]}  d6 {[%clk 0:02:53]} 3. Bb5+ {[%clk 0:03:00]}  Nd7 {[%clk 0:02:51]} 4. O-O {[%clk 0:02:59]}  Nf6 {[%clk 0:02:51]} 5. Re1 {[%clk 0:02:58]}  g6 {[%clk 0:02:41]} 6. c3 {[%clk 0:02:56]}  Bg7 {[%clk 0:02:39]} 7. d4 {[%clk 0:02:56]}  a6 {[%clk 0:02:26]} 8. Bf1 {[%clk 0:02:51]}  e5 {[%clk 0:02:19]} 9. dxe5 {[%clk 0:02:47]}  Nxe5 {[%clk 0:02:15]} 10. Nxe5 {[%clk 0:02:46]}  dxe5 {[%clk 0:02:15]} 11. Qxd8+ {[%clk 0:02:46]}  Kxd8 {[%clk 0:02:15]} 12. a4 {[%clk 0:02:45]}  Kc7 {[%clk 0:02:13]} 13. Na3 {[%clk 0:02:44]}  Be6 {[%clk 0:02:11]} 14. Bc4 {[%clk 0:02:28]}  Rhe8 {[%clk 0:02:10]} 15. Bxe6 {[%clk 0:02:23]}  Rxe6 {[%clk 0:02:09]} 16. a5 {[%clk 0:02:23]}  Rd8 {[%clk 0:02:06]} 17. f3 {[%clk 0:02:22]}  Ne8 {[%clk 0:01:52]} 18. Be3 {[%clk 0:02:14]}  Bf8 {[%clk 0:01:49]} 19. Nc4 {[%clk 0:02:14]}  Nd6 {[%clk 0:01:43]} 20. Nb6 {[%clk 0:02:13]}  Kc6 {[%clk 0:01:37]} 21. Red1 {[%clk 0:02:07]}  Ree8 {[%clk 0:01:33]} 22. Rd5 {[%clk 0:01:20]}  Nc8 {[%clk 0:01:30]} 23. Rad1 {[%clk 0:01:02]}  Rxd5 {[%clk 0:01:22]} 24. exd5+ {[%clk 0:01:02]}  Kc7 {[%clk 0:01:21]} 25. Na4 {[%clk 0:01:01]}  e4 {[%clk 0:01:14]} 26. Bxc5 {[%clk 0:00:54]}  Bxc5+ {[%clk 0:01:11]} 27. Nxc5 {[%clk 0:00:54]}  exf3 {[%clk 0:01:11]} 28. gxf3 {[%clk 0:00:54]}  Re2 {[%clk 0:01:10]} 29. b4 {[%clk 0:00:53]}  Nd6 {[%clk 0:01:10]} 30. Rd3 {[%clk 0:00:37]}  h5 {[%clk 0:01:03]} 31. h4 {[%clk 0:00:33]}  f5 {[%clk 0:00:52]} 32. Ne6+ {[%clk 0:00:33]}  Kd7 {[%clk 0:00:50]} 33. Nf4 {[%clk 0:00:34]}  Rc2 {[%clk 0:00:47]} 34. Nxg6 {[%clk 0:00:33]}  Nc4 {[%clk 0:00:42]} 35. Nf4 {[%clk 0:00:30]}  Kd6 {[%clk 0:00:41]} 36. Nxh5 {[%clk 0:00:28]}  Ne5 {[%clk 0:00:41]} 37. Re3 {[%clk 0:00:28]}  Kxd5 {[%clk 0:00:36]} 38. Nf4+ {[%clk 0:00:26]}  Kd6 {[%clk 0:00:36]} 39. h5 {[%clk 0:00:26]}  Nc4 {[%clk 0:00:32]} 40. Re6+ {[%clk 0:00:23]}  Kd7 {[%clk 0:00:30]} 41. h6 {[%clk 0:00:23]}  Nd2 {[%clk 0:00:23]} 42. Re3 {[%clk 0:00:22]} 1-0

[Event "January 9 Early 2024"]
[Site "https://www.chess.com"]
[Date "2024.01.11"]
[Round "1"]
[White "Lu, Shanglei"]
[Black "Fiedorek, Michal"]
[Result "1-0"]
[Board "189"]
[TimeControl "180+1"]
[WhiteFideId "8603332"]
[BlackFideId "1199528"]
[WhiteElo "2932"]
[BlackElo "2494"]
[WhiteTeam "CHN"]
[BlackTeam "POL"]
[WhiteClock "0:00:09"]
[BlackClock "0:00:03"]

1. e4 {[%clk 0:03:00]}  c5 {[%clk 0:02:59]} 2. Nf3 {[%clk 0:03:01]}  d6 {[%clk 0:02:59]} 3. d4 {[%clk 0:03:01]}  cxd4 {[%clk 0:03:00]} 4. Nxd4 {[%clk 0:03:02]}  Nf6 {[%clk 0:03:00]} 5. f3 {[%clk 0:03:02]}  e5 {[%clk 0:03:00]} 6. Nb3 {[%clk 0:03:03]}  Be7 {[%clk 0:02:53]} 7. c4 {[%clk 0:03:03]}  a5 {[%clk 0:02:54]} 8. Be3 {[%clk 0:03:03]}  a4 {[%clk 0:02:54]} 9. N3d2 {[%clk 0:03:01]}  Nc6 {[%clk 0:02:53]} 10. Nc3 {[%clk 0:03:01]}  a3 {[%clk 0:02:51]} 11. b3 {[%clk 0:02:58]}  Qa5 {[%clk 0:02:50]} 12. Rc1 {[%clk 0:02:56]}  O-O {[%clk 0:02:50]} 13. Be2 {[%clk 0:02:45]}  Nd4 {[%clk 0:02:42]} 14. O-O {[%clk 0:02:43]}  Be6 {[%clk 0:02:36]} 15. Kh1 {[%clk 0:02:27]}  Bd8 {[%clk 0:02:29]} 16. Nd5 {[%clk 0:02:13]}  Bxd5 {[%clk 0:02:19]} 17. cxd5 {[%clk 0:02:12]}  b5 {[%clk 0:02:14]} 18. Bxd4 {[%clk 0:02:01]}  exd4 {[%clk 0:02:14]} 19. Bd3 {[%clk 0:02:02]}  Nd7 {[%clk 0:02:09]} 20. f4 {[%clk 0:02:00]}  Nc5 {[%clk 0:02:09]} 21. Nf3 {[%clk 0:01:56]}  Re8 {[%clk 0:01:55]} 22. e5 {[%clk 0:01:40]}  Bb6 {[%clk 0:01:10]} 23. Bxh7+ {[%clk 0:01:35]}  Kxh7 {[%clk 0:01:10]} 24. Ng5+ {[%clk 0:01:35]}  Kg6 {[%clk 0:00:33]} 25. Qg4 {[%clk 0:00:58]}  f5 {[%clk 0:00:32]} 26. exf6 {[%clk 0:00:25]}  Kxf6 {[%clk 0:00:32]} 27. Nh7+ {[%clk 0:00:23]}  Kf7 {[%clk 0:00:31]} 28. Qf5+ {[%clk 0:00:21]}  Kg8 {[%clk 0:00:31]} 29. Ng5 {[%clk 0:00:20]}  Qa7 {[%clk 0:00:16]} 30. Qh7+ {[%clk 0:00:17]}  Kf8 {[%clk 0:00:16]} 31. Rce1 {[%clk 0:00:18]}  Re3 {[%clk 0:00:11]} 32. f5 {[%clk 0:00:12]}  Nd3 {[%clk 0:00:11]} 33. f6 {[%clk 0:00:10]}  g6 {[%clk 0:00:03]} 34. Qh8# {[%clk 0:00:09]} 1-0

[Event "January 9 Early 2024"]
[Site "https://www.chess.com"]
[Date "2024.01.11"]
[Round "1"]
[White "Ioannidis, Evgenios"]
[Black "Martinez Martin, David"]
[Result "1-0"]
[Board "190"]
[TimeControl "180+1"]
[WhiteFideId "4229274"]
[BlackFideId "2209748"]
[WhiteElo "2795"]
[BlackElo "2436"]
[WhiteTeam "GRE"]
[BlackTeam "ESP"]
[WhiteClock "0:00:07"]
[BlackClock "0:00:01"]

1. d4 {[%clk 0:03:00]}  Nf6 {[%clk 0:02:59]} 2. c4 {[%clk 0:03:00]}  e6 {[%clk 0:02:59]} 3. Nc3 {[%clk 0:03:01]}  d5 {[%clk 0:03:00]} 4. cxd5 {[%clk 0:03:01]}  exd5 {[%clk 0:03:00]} 5. Bg5 {[%clk 0:03:02]}  c6 {[%clk 0:02:58]} 6. e3 {[%clk 0:03:02]}  Be7 {[%clk 0:02:58]} 7. Bd3 {[%clk 0:03:02]}  Nbd7 {[%clk 0:02:57]} 8. h3 {[%clk 0:03:01]}  O-O {[%clk 0:02:54]} 9. Bf4 {[%clk 0:03:01]}  Re8 {[%clk 0:02:51]} 10. Nf3 {[%clk 0:03:01]}  Nf8 {[%clk 0:02:51]} 11. Ne5 {[%clk 0:02:41]}  Bd6 {[%clk 0:02:46]} 12. Bg3 {[%clk 0:02:26]}  Ng6 {[%clk 0:02:44]} 13. f4 {[%clk 0:02:27]}  Qb6 {[%clk 0:02:18]} 14. Qd2 {[%clk 0:01:37]}  Bb4 {[%clk 0:01:40]} 15. O-O {[%clk 0:01:24]}  Ne4 {[%clk 0:01:37]} 16. Bxe4 {[%clk 0:01:23]}  dxe4 {[%clk 0:01:37]} 17. Qc2 {[%clk 0:01:17]}  Bf5 {[%clk 0:01:29]} 18. Bf2 {[%clk 0:01:03]}  Nxe5 {[%clk 0:01:28]} 19. fxe5 {[%clk 0:00:56]}  Bg6 {[%clk 0:01:19]} 20. Kh1 {[%clk 0:00:42]}  Rac8 {[%clk 0:01:12]} 21. Bh4 {[%clk 0:00:41]}  Qa6 {[%clk 0:01:04]} 22. Qb3 {[%clk 0:00:25]}  Bf8 {[%clk 0:00:49]} 23. Rf4 {[%clk 0:00:24]}  c5 {[%clk 0:00:43]} 24. Raf1 {[%clk 0:00:24]}  cxd4 {[%clk 0:00:41]} 25. exd4 {[%clk 0:00:24]}  Qd3 {[%clk 0:00:28]} 26. Nxe4 {[%clk 0:00:17]}  Qxb3 {[%clk 0:00:16]} 27. axb3 {[%clk 0:00:18]}  Rc6 {[%clk 0:00:11]} 28. Ng5 {[%clk 0:00:17]}  Rc2 {[%clk 0:00:05]} 29. Nxf7 {[%clk 0:00:16]}  Rxb2 {[%clk 0:00:04]} 30. Nd6 {[%clk 0:00:14]}  Rb8 {[%clk 0:00:04]} 31. R4f3 {[%clk 0:00:11]}  Rc2 {[%clk 0:00:02]} 32. Nf5 {[%clk 0:00:09]}  Rd2 {[%clk 0:00:01]} 33. Bg5 {[%clk 0:00:07]} 1-0

[Event "January 9 Early 2024"]
[Site "https://www.chess.com"]
[Date "2024.01.11"]
[Round "1"]
[White "Timerkhanov, Alexander"]
[Black "Santeramo, Alessia Carmen"]
[Result "1-0"]
[Board "194"]
[TimeControl "180+1"]
[WhiteFideId "24177938"]
[BlackFideId "850810"]
[WhiteElo "2657"]
[BlackElo "2323"]
[WhiteTeam "RUS"]
[BlackTeam "ITA"]
[WhiteClock "0:00:26"]
[BlackClock "0:00:01"]

1. d4 {[%clk 0:03:00]}  Nf6 {[%clk 0:02:54]} 2. Bg5 {[%clk 0:03:01]}  d5 {[%clk 0:02:48]} 3. Nd2 {[%clk 0:03:01]}  Nbd7 {[%clk 0:02:44]} 4. Ngf3 {[%clk 0:03:00]}  h6 {[%clk 0:02:43]} 5. Bh4 {[%clk 0:02:59]}  g5 {[%clk 0:02:33]} 6. Bg3 {[%clk 0:02:59]}  Bg7 {[%clk 0:02:33]} 7. e3 {[%clk 0:02:57]}  a6 {[%clk 0:02:14]} 8. Ne5 {[%clk 0:02:55]}  c5 {[%clk 0:02:06]} 9. c3 {[%clk 0:02:54]}  b5 {[%clk 0:01:54]} 10. h4 {[%clk 0:02:53]}  Nxe5 {[%clk 0:01:49]} 11. Bxe5 {[%clk 0:02:51]}  c4 {[%clk 0:01:38]} 12. hxg5 {[%clk 0:02:40]}  hxg5 {[%clk 0:01:38]} 13. Rxh8+ {[%clk 0:02:41]}  Bxh8 {[%clk 0:01:39]} 14. e4 {[%clk 0:02:41]}  Bg4 {[%clk 0:01:29]} 15. Be2 {[%clk 0:02:38]}  Bxe2 {[%clk 0:01:03]} 16. Qxe2 {[%clk 0:02:38]}  Qd7 {[%clk 0:01:04]} 17. a4 {[%clk 0:01:55]}  O-O-O {[%clk 0:00:46]} 18. axb5 {[%clk 0:01:51]}  Qxb5 {[%clk 0:00:46]} 19. exd5 {[%clk 0:01:45]}  Nxd5 {[%clk 0:00:24]} 20. Qxc4+ {[%clk 0:01:45]}  Qxc4 {[%clk 0:00:21]} 21. Nxc4 {[%clk 0:01:46]}  Bxe5 {[%clk 0:00:13]} 22. Nxe5 {[%clk 0:01:47]}  f6 {[%clk 0:00:11]} 23. Nd3 {[%clk 0:01:43]}  Rd6 {[%clk 0:00:10]} 24. Kd2 {[%clk 0:01:39]}  Kb7 {[%clk 0:00:08]} 25. Nc5+ {[%clk 0:01:38]}  Ka7 {[%clk 0:00:08]} 26. b4 {[%clk 0:01:39]}  Nf4 {[%clk 0:00:08]} 27. b5 {[%clk 0:01:33]}  Nxg2 {[%clk 0:00:07]} 28. bxa6 {[%clk 0:01:32]}  e5 {[%clk 0:00:06]} 29. Kd3 {[%clk 0:01:08]}  Nf4+ {[%clk 0:00:06]} 30. Kc4 {[%clk 0:01:07]}  exd4 {[%clk 0:00:07]} 31. cxd4 {[%clk 0:01:07]}  Ne6 {[%clk 0:00:07]} 32. d5 {[%clk 0:00:57]}  Nf4 {[%clk 0:00:06]} 33. Rh1 {[%clk 0:00:46]}  Nxd5 {[%clk 0:00:03]} 34. Rh7+ {[%clk 0:00:47]}  Ka8 {[%clk 0:00:03]} 35. Kb5 {[%clk 0:00:36]}  Nc3+ {[%clk 0:00:04]} 36. Ka5 {[%clk 0:00:33]}  Nd5 {[%clk 0:00:04]} 37. Nd7 {[%clk 0:00:30]}  Nc7 {[%clk 0:00:04]} 38. Nb6+ {[%clk 0:00:30]}  Kb8 {[%clk 0:00:03]} 39. Rh8+ {[%clk 0:00:25]}  Ka7 {[%clk 0:00:03]} 40. Nc8+ {[%clk 0:00:25]}  Kb8 {[%clk 0:00:01]} 41. Nxd6+ {[%clk 0:00:26]} 1-0

[Event "January 9 Early 2024"]
[Site "https://www.chess.com"]
[Date "2024.01.11"]
[Round "1"]
[White "Srihari L R"]
[Black "Filippova, Margarita"]
[Result "1-0"]
[Board "197"]
[TimeControl "180+1"]
[WhiteFideId "46617116"]
[BlackFideId "34199680"]
[WhiteElo "2674"]
[BlackElo "2348"]
[WhiteTeam "IND"]
[BlackTeam "RUS"]
[WhiteClock "0:00:40"]
[BlackClock "0:00:14"]

1. Nf3 {[%clk 0:03:00]}  d5 {[%clk 0:02:58]} 2. g3 {[%clk 0:03:00]}  Nf6 {[%clk 0:02:55]} 3. Bg2 {[%clk 0:03:00]}  e6 {[%clk 0:02:56]} 4. O-O {[%clk 0:03:00]}  Be7 {[%clk 0:02:56]} 5. b3 {[%clk 0:02:59]}  O-O {[%clk 0:02:57]} 6. Bb2 {[%clk 0:03:00]}  b6 {[%clk 0:02:54]} 7. c4 {[%clk 0:02:59]}  Bb7 {[%clk 0:02:54]} 8. e3 {[%clk 0:02:59]}  c5 {[%clk 0:02:50]} 9. Qe2 {[%clk 0:02:59]}  Nc6 {[%clk 0:02:51]} 10. Rd1 {[%clk 0:02:57]}  Rc8 {[%clk 0:02:49]} 11. cxd5 {[%clk 0:02:54]}  exd5 {[%clk 0:02:46]} 12. d4 {[%clk 0:02:53]}  Ne4 {[%clk 0:02:44]} 13. Nbd2 {[%clk 0:02:50]}  f5 {[%clk 0:02:43]} 14. dxc5 {[%clk 0:02:49]}  bxc5 {[%clk 0:02:42]} 15. Nxe4 {[%clk 0:02:45]}  fxe4 {[%clk 0:02:43]} 16. Nd2 {[%clk 0:02:44]}  Qb6 {[%clk 0:02:25]} 17. Nb1 {[%clk 0:02:14]}  Rcd8 {[%clk 0:02:18]} 18. Nc3 {[%clk 0:02:13]}  Nb4 {[%clk 0:02:17]} 19. Na4 {[%clk 0:02:11]}  Qg6 {[%clk 0:02:14]} 20. Ba3 {[%clk 0:01:35]}  Nd3 {[%clk 0:02:12]} 21. f4 {[%clk 0:01:31]}  exf3 {[%clk 0:01:30]} 22. Qxd3 {[%clk 0:01:31]}  Qxd3 {[%clk 0:01:28]} 23. Rxd3 {[%clk 0:01:31]}  fxg2 {[%clk 0:01:29]} 24. Bxc5 {[%clk 0:01:30]}  Rf1+ {[%clk 0:01:13]} 25. Rxf1 {[%clk 0:01:25]}  gxf1=Q+ {[%clk 0:01:14]} 26. Kxf1 {[%clk 0:01:25]}  Ba6 {[%clk 0:01:12]} 27. Bxe7 {[%clk 0:01:20]}  Bxd3+ {[%clk 0:01:10]} 28. Ke1 {[%clk 0:01:20]}  Re8 {[%clk 0:01:05]} 29. Bc5 {[%clk 0:01:19]}  a6 {[%clk 0:01:03]} 30. Kd2 {[%clk 0:01:18]}  Be4 {[%clk 0:00:59]} 31. Kc3 {[%clk 0:01:09]}  Re6 {[%clk 0:00:43]} 32. Bd4 {[%clk 0:01:04]}  Rh6 {[%clk 0:00:38]} 33. h4 {[%clk 0:01:03]}  Rc6+ {[%clk 0:00:31]} 34. Nc5 {[%clk 0:01:03]}  Rc8 {[%clk 0:00:24]} 35. b4 {[%clk 0:01:02]}  Kf7 {[%clk 0:00:20]} 36. Be5 {[%clk 0:01:01]}  Rc6 {[%clk 0:00:20]} 37. Kd4 {[%clk 0:00:59]}  h5 {[%clk 0:00:20]} 38. a4 {[%clk 0:00:57]}  g6 {[%clk 0:00:20]} 39. Kc3 {[%clk 0:00:47]}  Rc8 {[%clk 0:00:18]} 40. Kd4 {[%clk 0:00:46]}  Rc6 {[%clk 0:00:17]} 41. Bf4 {[%clk 0:00:42]}  Kf6 {[%clk 0:00:17]} 42. b5 {[%clk 0:00:40]}  axb5 {[%clk 0:00:17]} 43. axb5 {[%clk 0:00:41]}  Rc8 {[%clk 0:00:17]} 44. b6 {[%clk 0:00:41]}  Ke7 {[%clk 0:00:17]} 45. b7 {[%clk 0:00:41]}  Rxc5 {[%clk 0:00:14]} 46. Kxc5 {[%clk 0:00:39]}  d4 {[%clk 0:00:14]} 47. b8=Q {[%clk 0:00:40]} 1-0